bitfinex-derivatives/quotes_BNBF0:USTF0_20250406
["timestamp","ask_amount","ask_price","bid_price","bid_amount"]
[1743920529974,0.29375765,592.8,591.82,0.28680671]
[1743920534173,0.536,592.79,591.82,0.28680671]
[1743920535476,0.536,592.79,591.81,0.3379463]
[1743920535681,0.536,592.79,591.82,0.28683354]
[1743920535976,0.29377625,592.78,591.82,0.28683354]
[1743920538782,0.536,592.79,591.82,0.28683354]
[1743920539183,0.29376137,592.77,591.82,0.28683354]
[1743920540582,0.29376137,592.77,591.81,0.3379463]
[1743920540785,0.29376137,592.77,591.82,0.28683651]
[1743920541684,0.536,592.79,591.82,0.28683651]
[1743920541983,0.29376137,592.76,591.82,0.28683651]
[1743920543984,0.29376137,592.76,591.81,0.3379463]
[1743920544186,0.29376137,592.76,591.82,0.28679212]
[1743920544788,0.536,592.79,591.82,0.28679212]
[1743920545381,0.29375889,592.78,591.82,0.28679212]
[1743920545688,0.29375889,592.78,591.81,0.3379463]
[1743920545988,0.29375889,592.78,591.82,0.28678913]
[1743920547789,0.33737622,592.81,591.82,0.28678913]
[1743920547989,0.33737622,592.81,591.81,0.3379463]
[1743920548190,0.29375889,592.77,591.82,0.28678872]
[1743920549092,0.68,592.76,591.82,0.28678872]
[1743920551094,0.29376509,592.75,591.82,0.28678872]
[1743920552295,0.29376509,592.75,591.81,1.60627954]
[1743920552691,0.29376509,592.75,591.82,0.28679718]
[1743920553796,0.645,592.74,591.82,0.28679718]
[1743920554095,0.645,592.74,591.83,1.26833324]
[1743920554295,0.645,592.74,591.84,0.28679718]
[1743920555296,0.29376509,592.73,591.84,0.28679718]
[1743920556395,0.29376509,592.73,591.86,1.26833324]
[1743920556596,0.29376509,592.73,591.87,0.28679718]
[1743920556794,0.645,592.74,591.87,0.28679718]
[1743920556988,0.29376137,592.72,591.87,0.28679718]
[1743920558605,0.29376137,592.72,591.89,1.26833324]
[1743920559794,0.645,592.74,591.89,1.26833324]
[1743920560697,0.645,592.74,591.81,0.3379463]
[1743920561197,0.29371302,592.73,591.81,0.3379463]
[1743920562597,0.29371302,592.73,591.82,0.28655534]
[1743920562795,0.645,592.74,591.82,0.28655534]
[1743920564197,0.29372294,592.73,591.82,0.28655534]
[1743920565803,0.645,592.74,591.81,0.3379463]
[1743920566001,0.645,592.74,591.82,0.28645435]
[1743920566699,0.645,592.74,591.83,1.26833324]
[1743920566901,0.645,592.74,591.84,0.28645435]
[1743920567104,0.29372046,592.73,591.84,0.28645435]
[1743920568202,0.29372046,592.73,591.87,1.26833324]
[1743920568400,0.29372046,592.73,591.88,0.28645435]
[1743920568803,0.645,592.74,591.88,0.28645435]
[1743920570103,0.29371302,592.73,591.88,0.28645435]
[1743920570502,0.29371302,592.73,591.89,0.28645435]
[1743920570803,0.29371302,592.73,591.9,0.28645435]
[1743920571004,0.29371302,592.73,591.84,0.28645435]
[1743920571203,0.29371302,592.73,591.85,0.28645435]
[1743920571403,0.29371302,592.73,591.84,0.28645435]
[1743920571599,0.645,592.74,591.86,0.33791775]
[1743920571803,0.645,592.74,591.87,0.28645435]
[1743920572406,0.645,592.74,591.86,0.33791775]
[1743920572603,0.645,592.74,591.87,0.28633261]
[1743920573006,0.645,592.74,591.87,1.55466585]
[1743920573200,0.645,592.74,591.87,1.26833324]
[1743920573399,0.645,592.74,591.88,0.28634172]
[1743920573802,0.531,592.73,591.88,0.28634172]
[1743920575407,0.531,592.73,591.89,1.55467496]
[1743920575606,0.531,592.73,591.9,0.28634172]
[1743920576308,0.531,592.73,591.91,0.28634172]
[1743920576506,0.531,592.73,591.92,0.28634172]
[1743920576707,0.531,592.73,591.93,0.28634172]
[1743920576903,0.531,592.73,591.9,0.28634172]
[1743920577103,0.531,592.73,591.91,0.28634172]
[1743920577305,0.531,592.73,591.92,0.28634172]
[1743920577502,0.531,592.73,591.93,0.28634172]
[1743920577703,0.531,592.73,591.9,0.28634172]
[1743920577903,0.531,592.73,591.91,0.28634172]
[1743920578106,0.531,592.73,591.89,1.26833324]
[1743920578307,0.531,592.73,591.92,1.26833324]
[1743920578608,0.531,592.73,591.93,0.28624481]
[1743920581611,0.531,592.73,591.91,0.28624481]
[1743920583908,0.531,592.73,591.92,0.33788349]
[1743920584109,0.531,592.73,591.93,0.28624481]
[1743920585314,0.531,592.73,591.92,0.33788349]
[1743920585515,0.531,592.73,591.93,0.28634526]
[1743920586214,0.531,592.73,591.93,0.62422304]
[1743920586409,0.531,592.73,591.94,0.28634526]
[1743920587013,0.531,592.73,591.93,0.33787778]
[1743920587213,0.531,592.73,591.94,0.28634233]
[1743920588720,0.531,592.73,591.93,0.33787778]
[1743920588920,0.531,592.73,591.94,0.28634102]
[1743920591215,0.531,592.73,591.95,0.28634102]
[1743920591420,0.531,592.73,591.96,0.28634102]
[1743920591720,0.531,592.73,591.97,0.28634102]
[1743920591919,0.531,592.73,591.93,0.33787778]
[1743920592120,0.531,592.73,591.94,0.28634607]
[1743920592321,0.531,592.73,591.95,0.28634607]
[1743920592621,0.531,592.73,591.96,0.28634607]
[1743920592818,0.531,592.73,591.97,0.28634607]
[1743920593121,0.531,592.73,591.98,0.28634607]
[1743920593321,0.531,592.73,591.95,0.28634607]
[1743920593623,0.531,592.73,591.96,0.28634607]
[1743920593822,0.531,592.73,591.97,0.28634607]
[1743920594017,0.531,592.73,591.98,0.28634607]
[1743920594220,0.531,592.73,592.01,1.26833324]
[1743920594417,0.531,592.73,592.02,0.28634607]
[1743920595826,0.645,592.74,592.02,0.28634607]
[1743920596026,0.645,592.74,592.04,1.26833324]
[1743920596225,0.645,592.74,592.05,0.28634607]
[1743920596926,0.645,592.74,592.04,1.26833324]
[1743920597127,0.645,592.74,592.05,0.28635911]
[1743920598027,0.645,592.74,592.05,1.55469235]
[1743920598228,0.645,592.74,592.06,0.28635911]
[1743920598731,0.645,592.74,592.05,1.26833324]
[1743920598930,0.477,592.73,592.06,0.28643178]
[1743920601233,0.477,592.73,592.04,0.28643178]
[1743920602030,0.477,592.73,592.05,0.28641096]
[1743920602230,0.477,592.73,592.04,0.28641096]
[1743920602431,0.477,592.73,592.06,0.28641096]
[1743920602631,0.477,592.73,592.03,1.26833324]
[1743920602829,0.477,592.73,592.04,0.28640885]
[1743920603832,0.477,592.73,592.05,0.28640343]
[1743920604032,0.477,592.73,592.05,1.26833324]
[1743920604227,0.477,592.73,592.06,0.28640343]
[1743920606428,0.477,592.73,592.09,1.26833324]
[1743920606632,0.477,592.73,592.1,0.28640343]
[1743920608533,0.477,592.73,592.11,1.26833324]
[1743920608734,0.477,592.73,592.12,0.28640556]
[1743920610834,0.477,592.73,592.12,1.5547388]
[1743920611031,0.477,592.73,592.13,0.28640556]
[1743920612535,0.477,592.73,592.13,1.5547388]
[1743920612736,0.477,592.73,592.14,0.28640556]
[1743920613339,0.639,592.72,592.14,0.28640556]
[1743920615133,0.639,592.72,592.15,0.28640556]
[1743920615333,0.639,592.72,592.12,1.26833324]
[1743920615538,0.639,592.72,592.13,0.28642159]
[1743920619441,0.639,592.72,592.05,1.26833324]
[1743920619633,0.639,592.72,592.06,0.28646227]
[1743920620339,0.639,592.72,592.05,1.26833324]
[1743920622143,0.639,592.72,591.94,0.29367832]
[1743920622343,0.639,592.72,591.95,0.28650971]
[1743920622939,0.639,592.72,591.94,0.28650971]
[1743920623143,0.639,592.72,591.95,0.28650971]
[1743920623343,0.639,592.72,591.94,0.28650971]
[1743920623545,0.639,592.72,591.95,0.28650971]
[1743920623740,0.639,592.72,591.94,0.28650971]
[1743920624246,0.639,592.72,591.94,0.5802029]
[1743920624450,0.639,592.72,591.95,0.28650971]
[1743920625449,0.639,592.72,591.96,0.28650738]
[1743920625645,0.639,592.72,591.95,0.28650738]
[1743920626047,0.639,592.72,591.96,0.28650738]
[1743920626249,0.639,592.72,591.97,0.28650738]
[1743920626450,0.632,592.71,591.94,0.28650738]
[1743920626646,0.632,592.71,591.95,0.28650738]
[1743920626849,0.632,592.71,591.93,0.33787778]
[1743920627048,0.632,592.71,591.94,0.28649127]
[1743920627246,0.632,592.71,591.94,0.5801857]
[1743920627445,0.632,592.71,591.95,0.28649127]
[1743920629046,0.632,592.71,591.96,0.28649127]
[1743920629246,0.632,592.71,591.94,0.28649127]
[1743920629448,0.632,592.71,591.95,0.28649127]
[1743920629649,0.632,592.71,591.94,0.28649127]
[1743920629853,0.632,592.71,591.95,0.28649127]
[1743920630047,0.632,592.71,591.94,0.28649127]
[1743920630253,0.632,592.71,591.94,0.29369443]
[1743920630453,0.632,592.71,591.95,0.28644575]
[1743920631856,0.632,592.71,591.93,0.33787778]
[1743920632057,0.632,592.71,591.96,0.28643674]
[1743920632255,0.632,592.71,591.97,0.28643674]
[1743920632556,0.632,592.71,591.95,0.28643674]
[1743920632759,0.632,592.71,591.96,0.28643674]
[1743920633056,0.632,592.71,591.95,0.28643674]
[1743920633257,0.632,592.71,591.96,0.28643674]
[1743920633450,0.632,592.71,591.95,0.28643674]
[1743920635159,0.632,592.71,591.95,1.55476998]
[1743920635358,0.632,592.71,591.96,0.28646315]
[1743920637462,0.632,592.71,592.05,1.26833324]
[1743920637662,0.632,592.71,592.06,0.28646315]
[1743920638662,0.632,592.71,592.05,1.26833324]
[1743920638862,0.632,592.71,592.06,0.28640228]
[1743920640358,0.632,592.71,592.07,0.28640101]
[1743920640562,0.632,592.71,592.03,0.28640101]
[1743920643167,0.632,592.71,592.02,1.26833324]
[1743920643368,0.632,592.71,592.03,0.28640618]
[1743920644369,0.474,592.7,592.03,0.28640618]
[1743920644772,0.474,592.7,592.02,1.26833324]
[1743920644971,0.474,592.7,592.03,0.28640882]
[1743920645367,0.474,592.7,592.04,1.26833324]
[1743920645573,0.474,592.7,592.05,0.28640882]
[1743920646370,0.474,592.7,592.04,1.26833324]
[1743920646574,0.474,592.7,592.05,0.28640959]
[1743920647174,0.474,592.7,592.04,1.26833324]
[1743920647373,0.474,592.7,592.05,0.28640995]
[1743920647576,0.474,592.7,592.04,1.26833324]
[1743920647771,0.474,592.7,592.05,0.28640917]
[1743920648174,0.474,592.7,592.04,1.26833324]
[1743920648375,0.474,592.7,592.05,0.2864106]
[1743920648574,0.474,592.7,592.06,0.2864106]
[1743920648775,0.474,592.7,591.97,0.2864106]
[1743920649070,0.474,592.7,591.98,0.2864106]
[1743920649276,0.474,592.7,591.99,0.2864106]
[1743920649474,0.474,592.7,592.0,0.2864106]
[1743920649676,0.474,592.7,591.97,0.2864106]
[1743920649975,0.474,592.7,591.98,0.2864185]
[1743920650270,0.474,592.7,591.99,0.2864185]
[1743920650574,0.474,592.7,591.97,0.2864185]
[1743920650774,0.474,592.7,591.98,0.2864185]
[1743920650975,0.474,592.7,591.97,0.2864185]
[1743920651274,0.474,592.7,591.99,1.26833324]
[1743920651475,0.474,592.7,592.0,0.2864185]
[1743920653071,0.474,592.7,591.99,1.26833324]
[1743920653273,0.474,592.7,592.0,0.28644386]
[1743920653678,1.138,592.7,592.0,0.28644386]
[1743920653872,1.138,592.7,591.98,0.28644386]
[1743920654678,1.138,592.7,591.97,1.26833324]
[1743920654978,1.138,592.7,591.98,0.28646449]
[1743920655574,1.138,592.7,592.02,1.26833324]
[1743920655778,1.138,592.7,592.03,0.28646449]
[1743920656278,1.138,592.7,592.02,1.26833324]
[1743920656577,1.138,592.7,592.03,0.28645949]
[1743920657582,1.138,592.7,592.02,1.26833324]
[1743920657780,1.138,592.7,592.03,0.28646762]
[1743920658180,1.138,592.7,592.07,1.26833324]
[1743920658379,1.138,592.7,592.08,0.28646762]
[1743920659675,1.138,592.7,592.07,1.26833324]
[1743920659975,1.138,592.7,592.08,0.28646568]
[1743920660781,1.138,592.7,592.09,0.28646568]
[1743920660977,1.138,592.7,592.06,0.28646568]
[1743920661180,1.138,592.7,592.07,0.28646568]
[1743920661377,1.138,592.7,592.05,1.26833324]
[1743920661582,1.138,592.7,592.06,0.28645221]
[1743920663179,1.138,592.7,592.05,1.26833324]
[1743920663383,1.138,592.7,592.06,0.28645673]
[1743920668283,1.138,592.7,592.05,1.26833324]
[1743920668486,1.138,592.7,592.06,0.28643037]
[1743920668986,1.138,592.7,592.05,0.28643037]
[1743920669188,1.138,592.7,592.06,0.28643037]
[1743920669382,1.138,592.7,592.05,0.28643037]
[1743920669585,1.138,592.7,592.06,0.28643037]
[1743920669887,1.138,592.7,592.07,0.28643037]
[1743920670088,1.138,592.7,592.08,0.28643037]
[1743920670288,1.138,592.7,592.05,0.28643037]
[1743920670489,1.138,592.7,592.04,1.26833324]
[1743920670686,1.138,592.7,592.05,0.28641289]
[1743920674293,1.138,592.7,592.05,1.55474613]
[1743920674489,1.138,592.7,592.06,0.28641289]
[1743920676694,1.138,592.7,592.05,1.26833324]
[1743920676994,1.138,592.7,592.06,0.28640621]
[1743920677693,1.138,592.7,592.04,0.28640621]
[1743920678494,1.138,592.7,592.03,1.26833324]
[1743920678695,1.138,592.7,592.04,0.28640566]
[1743920681095,1.138,592.7,592.04,1.5547389]
[1743920681295,1.138,592.7,592.05,0.28640566]
[1743920684497,1.138,592.7,592.06,1.26833324]
[1743920684698,1.138,592.7,592.07,0.28640566]
[1743920687203,1.138,592.7,592.08,1.26833324]
[1743920687405,1.138,592.7,592.09,0.28640566]
[1743920688307,1.12571907,592.7,592.09,0.28640566]
[1743920688605,0.664,592.7,592.08,1.26833324]
[1743920688801,0.664,592.7,592.09,0.28631209]
[1743920690103,0.664,592.7,592.08,0.28631209]
[1743920690303,0.664,592.7,592.09,0.28631209]
[1743920690501,0.664,592.7,592.08,0.28631209]
[1743920690701,0.664,592.7,592.09,0.28631209]
[1743920690905,0.664,592.7,592.1,0.28631209]
[1743920691105,0.664,592.7,592.08,0.28631209]
[1743920691306,0.664,592.7,592.09,0.28631209]
[1743920691501,0.664,592.7,592.08,0.28631209]
[1743920691703,0.664,592.7,592.09,0.28631209]
[1743920691906,0.664,592.7,592.07,1.26833324]
[1743920692105,0.664,592.7,592.08,0.28579429]
[1743920693605,0.664,592.7,592.07,1.26833324]
[1743920693910,0.664,592.7,592.08,0.28579748]
[1743920696804,0.664,592.7,592.07,1.26833324]
[1743920697004,0.664,592.7,592.08,0.28579758]
[1743920697706,0.664,592.7,592.07,1.26833324]
[1743920697909,0.664,592.7,592.08,0.28579674]
[1743920698604,0.664,592.7,592.07,1.26833324]
[1743920698809,0.664,592.7,592.08,0.28579956]
[1743920699710,0.664,592.7,592.09,0.28579956]
[1743920699906,0.664,592.7,592.02,0.28579956]
[1743920700110,0.664,592.7,592.03,0.28579956]
[1743920700514,0.664,592.7,592.04,0.28579956]
[1743920700712,0.664,592.7,592.02,0.28579956]
[1743920700913,0.664,592.7,592.03,0.28579956]
[1743920701114,0.664,592.7,592.02,0.28579956]
[1743920701413,0.664,592.7,592.01,1.26833324]
[1743920701614,0.664,592.7,592.03,0.28578176]
[1743920701909,0.664,592.7,592.04,0.28578176]
[1743920702116,0.664,592.7,592.08,1.26833324]
[1743920702310,0.664,592.7,592.09,0.28578176]
[1743920704812,0.664,592.7,592.1,0.28578345]
[1743920705017,0.664,592.7,592.09,0.28578345]
[1743920705217,0.664,592.7,592.1,0.28578345]
[1743920705417,0.664,592.7,592.09,0.28578345]
[1743920705618,0.664,592.7,592.1,0.28578345]
[1743920705819,0.664,592.7,592.09,0.28578345]
[1743920707020,0.664,592.7,592.08,1.26833324]
[1743920707219,0.664,592.7,592.1,0.28582515]
[1743920707519,0.664,592.7,592.11,0.28582515]
[1743920707719,0.664,592.7,592.08,0.28582515]
[1743920707918,0.664,592.7,592.09,0.28582515]
[1743920708121,0.664,592.7,592.1,0.28583007]
[1743920708315,0.664,592.7,592.11,0.28583007]
[1743920708521,0.664,592.7,592.08,0.28583007]
[1743920708721,0.664,592.7,592.09,0.28583007]
[1743920708925,0.664,592.7,592.07,1.26833324]
[1743920708926,0.664,592.7,592.08,0.28583007]
[1743920709123,0.664,592.7,592.09,0.28583007]
[1743920709323,0.664,592.7,592.1,0.28583007]
[1743920709524,0.664,592.7,592.08,0.28583007]
[1743920709728,0.664,592.7,592.09,0.28580022]
[1743920709921,0.664,592.7,592.05,0.28580022]
[1743920711827,0.664,592.7,592.05,1.55413346]
[1743920712027,0.664,592.7,592.06,0.28580022]
[1743920712929,0.664,592.7,592.05,1.26833324]
[1743920713227,0.664,592.7,592.06,0.28580638]
[1743920714225,0.664,592.7,591.94,0.28580638]
[1743920714424,0.664,592.7,592.07,0.28580638]
[1743920714629,0.664,592.7,591.95,0.28580638]
[1743920714830,0.664,592.7,591.96,0.28580638]
[1743920715029,0.664,592.7,591.94,0.28580638]
[1743920716231,0.664,592.7,591.95,0.28579831]
[1743920716429,0.664,592.7,591.94,0.28579831]
[1743920717835,0.664,592.7,591.93,0.33787778]
[1743920718132,0.664,592.7,591.94,0.28580221]
[1743920719432,0.664,592.7,591.93,0.33787778]
[1743920719634,0.664,592.7,591.94,0.28581023]
[1743920720333,0.29373038,592.69,591.94,0.28581023]
[1743920721934,0.607,592.96,591.94,0.28581023]
[1743920722234,0.33729656,592.95,591.94,0.28581023]
[1743920722731,0.33729656,592.95,591.93,0.33787778]
[1743920722936,0.33729656,592.95,591.94,0.28597881]
[1743920723234,0.29371798,592.94,591.94,0.28597881]
[1743920723436,0.33730794,592.93,591.94,0.28597881]
[1743920724337,0.33730794,592.93,591.93,0.33787778]
[1743920724536,0.33730794,592.93,591.94,0.28598752]
[1743920726139,0.29369939,592.92,591.94,0.28598752]
[1743920728039,0.33730794,592.93,591.94,0.28598752]
[1743920729336,0.29369939,592.92,591.93,0.33787778]
[1743920729638,0.29369939,592.92,591.94,0.2859921]
[1743920730640,0.29369939,592.92,591.93,0.33787778]
[1743920730839,0.29369939,592.92,591.94,0.28599234]
[1743920731141,0.33730794,592.93,591.94,0.28599234]
[1743920732241,0.29369939,592.92,591.94,0.28599234]
[1743920732745,0.29369939,592.92,591.93,0.33787778]
[1743920732941,0.29369939,592.92,591.94,0.28599524]
[1743920733938,0.33730794,592.93,591.94,0.28599524]
[1743920734442,0.33730794,592.93,591.93,0.33787778]
[1743920734443,0.33730794,592.93,591.95,0.28599757]
[1743920734638,0.33730794,592.93,591.94,0.28599757]
[1743920734844,0.31023079,592.92,591.94,0.28599757]
[1743920735344,0.29370187,592.91,591.94,0.28599757]
[1743920738148,0.564,592.9,591.94,0.28599757]
[1743920740349,0.564,592.9,591.94,0.27621662]
[1743920740546,0.31023116,592.89,591.94,0.27621662]
[1743920741251,0.29370559,592.88,591.94,0.27621662]
[1743920741550,0.31023116,592.87,591.94,0.27621662]
[1743920742649,0.29370559,592.88,591.93,0.33787778]
[1743920742854,0.31023086,592.87,591.94,0.28646268]
[1743920743247,0.564,592.9,591.94,0.28646268]
[1743920743248,0.31023086,592.89,591.94,0.28646268]
[1743920744149,0.29370559,592.88,591.94,0.28646268]
[1743920744356,0.31023056,592.87,591.95,0.28645896]
[1743920744553,0.31023056,592.87,591.94,0.28645896]
[1743920744755,0.31023056,592.87,591.95,0.28645896]
[1743920744955,0.31023056,592.87,591.94,0.28645896]
[1743920745750,0.29370559,592.88,591.94,0.28645896]
[1743920745952,0.31023106,592.87,591.95,0.28645363]
[1743920746153,0.31023106,592.89,591.94,0.28645363]
[1743920746354,0.564,592.9,591.95,0.28645363]
[1743920746550,0.31023107,592.89,591.95,0.28645363]
[1743920746851,0.31023107,592.89,591.96,0.28645363]
[1743920747154,0.31023107,592.89,591.94,0.28645363]
[1743920747355,0.29370559,592.88,591.95,0.28645363]
[1743920747655,0.29370559,592.88,591.93,0.33787778]
[1743920747856,0.31023056,592.87,591.94,0.28645576]
[1743920749253,0.564,592.9,591.93,0.33787778]
[1743920749456,0.31023229,592.89,591.94,0.2859916]
[1743920750257,0.29370559,592.88,591.94,0.2859916]
[1743920750556,0.31023229,592.87,591.94,0.2859916]
[1743920750752,0.29370559,592.88,591.93,0.33787778]
[1743920750954,0.31023086,592.87,591.94,0.28598721]
[1743920751557,0.29370559,592.88,591.94,0.28598721]
[1743920751958,0.564,592.9,591.94,0.28598721]
[1743920752155,0.29370559,592.87,591.94,0.28598721]
[1743920752659,0.29370559,592.87,591.93,0.33787778]
[1743920752854,0.29370559,592.87,591.94,0.28598744]
[1743920754264,0.29370559,592.87,591.93,0.33787778]
[1743920754461,0.29370559,592.87,591.94,0.28598972]
[1743920754962,0.564,592.9,591.94,0.28598972]
[1743920756263,0.29370187,592.89,591.94,0.28598972]
[1743920756558,0.29370187,592.89,591.93,0.33787778]
[1743920756764,0.29370187,592.89,591.94,0.28596912]
[1743920757963,0.564,592.9,591.94,0.28596912]
[1743920759263,0.29370187,592.89,591.94,0.28596912]
[1743920760163,0.493,592.88,591.94,0.28596912]
[1743920761159,0.29370682,592.87,591.94,0.28596912]
[1743920761665,0.29370682,592.87,591.93,0.33787778]
[1743920761865,0.29370682,592.87,591.94,0.28599364]
[1743920762265,0.29370682,592.87,591.93,0.33787778]
[1743920762564,0.29370682,592.87,591.94,0.28600133]
[1743920763564,0.29370682,592.87,591.93,0.33787778]
[1743920763765,0.466,592.86,591.93,0.33787778]
[1743920765166,0.29372542,592.85,591.93,0.33787778]
[1743920766975,0.466,592.86,591.93,0.33787778]
[1743920768274,0.29372542,592.85,591.93,0.33787778]
[1743920770070,0.466,592.86,591.93,0.33787778]
[1743920770773,0.466,592.86,591.94,0.28604641]
[1743920771078,0.33735346,592.85,591.95,0.28604641]
[1743920771276,0.63111359,592.85,591.74,0.28604641]
[1743920771577,0.63111359,592.85,591.75,0.28606922]
[1743920771771,0.31025829,592.84,591.74,0.28606922]
[1743920771972,0.64762313,592.83,591.75,0.28607424]
[1743920772174,0.64762882,592.82,591.77,1.26833324]
[1743920772572,0.33737053,592.82,591.78,0.28607424]
[1743920774283,0.29377997,592.81,591.78,0.28607424]
[1743920774582,0.33738191,592.8,591.79,0.28607424]
[1743920774780,0.33738191,592.8,591.67,0.28607424]
[1743920774979,0.33738191,592.8,591.68,0.28607424]
[1743920775181,0.33738191,592.8,591.67,0.28607424]
[1743920775379,0.33738191,592.8,591.68,0.28607424]
[1743920775676,0.33738191,592.8,591.67,0.28607424]
[1743920775876,0.33738191,592.8,591.69,0.28607424]
[1743920776078,0.33738191,592.8,591.7,0.28607424]
[1743920776277,0.33738191,592.8,591.67,0.28607424]
[1743920776476,0.33738191,592.8,591.68,0.28607424]
[1743920776678,0.33738191,592.8,591.67,0.28607424]
[1743920776880,0.33738191,592.8,591.68,0.28607424]
[1743920777078,0.33738191,592.8,591.67,0.28607424]
[1743920777281,0.29379361,592.79,591.68,0.28607424]
[1743920777482,0.33739329,592.78,591.63,0.28607424]
[1743920777681,0.33739329,592.78,591.64,0.28607424]
[1743920777883,0.33739329,592.78,591.63,0.28607424]
[1743920778182,0.33739329,592.78,591.64,0.28607424]
[1743920778382,0.33739329,592.78,591.63,0.28607424]
[1743920778578,0.33739329,592.78,591.64,0.28607424]
[1743920778783,0.33739329,592.78,591.6,0.29379361]
[1743920778784,0.33739329,592.78,591.63,0.28607424]
[1743920779084,0.33739329,592.78,591.64,0.2862236]
[1743920779285,0.558,592.77,591.65,0.2862236]
[1743920779482,0.558,592.77,591.62,0.2862236]
[1743920779887,0.558,592.77,591.63,0.33804911]
[1743920780089,0.558,592.77,591.64,0.2862236]
[1743920780288,0.91676261,592.76,591.64,0.2862236]
[1743920780489,0.91676261,592.76,591.63,0.33804911]
[1743920780690,0.91676261,592.76,591.64,0.28616211]
[1743920780990,0.91676261,592.76,591.65,0.33803769]
[1743920781186,0.91676261,592.76,591.66,0.28616211]
[1743920781485,0.91676261,592.76,591.67,0.33802626]
[1743920781690,0.91676261,592.76,591.68,0.28616211]
[1743920781884,0.91676261,592.76,591.69,0.33801483]
[1743920782091,0.623,592.76,591.7,0.28616211]
[1743920782286,0.623,592.76,591.7,0.62417123]
[1743920782486,0.623,592.76,591.71,0.28616211]
[1743920783291,0.29375393,592.75,591.71,0.28616211]
[1743920784992,0.623,592.76,591.71,0.28616211]
[1743920785494,0.623,592.76,591.7,1.60634236]
[1743920785694,0.623,592.76,591.71,0.28614129]
[1743920786294,0.29375393,592.75,591.71,0.28614129]
[1743920786893,0.29375393,592.75,591.71,0.6241447]
[1743920787094,0.29375393,592.75,591.72,0.28614129]
[1743920787394,0.29375393,592.75,591.71,0.33800341]
[1743920787694,0.29375393,592.75,591.72,0.28608294]
[1743920787889,0.623,592.76,591.72,0.28608294]
[1743920788897,0.623,592.76,591.78,1.26833324]
[1743920789190,0.29375021,592.75,591.79,0.28609108]
[1743920790994,0.623,592.76,591.79,0.28609108]
[1743920791399,0.623,592.76,591.78,1.26833324]
[1743920791600,0.623,592.76,591.8,0.28609033]
[1743920791797,0.623,592.76,591.81,0.28609033]
[1743920792096,0.623,592.76,591.79,0.28609033]
[1743920792299,0.29374153,592.75,591.81,1.26833324]
[1743920792496,0.29374153,592.75,591.82,0.28609033]
[1743920793999,0.623,592.76,591.82,0.28609033]
[1743920794194,0.623,592.76,591.83,0.28609122]
[1743920794399,0.623,592.76,591.82,0.28609122]
[1743920794596,0.623,592.76,591.84,0.28609122]
[1743920794796,0.623,592.76,591.85,0.28609122]
[1743920794997,0.623,592.76,591.82,0.28609122]
[1743920795299,0.29373781,592.75,591.83,0.28609122]
[1743920795494,0.29373781,592.75,591.82,0.28609122]
[1743920795699,0.29373781,592.75,591.81,1.26833324]
[1743920795893,0.29373781,592.75,591.83,0.28608632]
[1743920796095,0.29373781,592.75,591.84,0.28608632]
[1743920796299,0.29373781,592.75,591.82,0.28608632]
[1743920796499,0.29373781,592.75,591.85,0.28608632]
[1743920796798,0.29373781,592.75,591.76,0.29373781]
[1743920796799,0.29373781,592.75,591.86,0.28608632]
[1743920796998,0.558,592.77,591.81,0.28608632]
[1743920797197,0.558,592.77,591.82,0.28608632]
[1743920797505,0.558,592.77,591.8,1.26833324]
[1743920797703,0.29373657,592.76,591.81,0.28609036]
[1743920798602,0.29373657,592.76,591.85,1.26833324]
[1743920798802,0.29373657,592.76,591.86,0.28609036]
[1743920799503,0.592,592.75,591.86,0.28609036]
[1743920800907,0.592,592.75,591.87,0.28608885]
[1743920801109,0.592,592.75,591.78,0.28608885]
[1743920801301,0.592,592.75,591.79,0.28608885]
[1743920801506,0.592,592.75,591.78,0.28608885]
[1743920801706,0.592,592.75,591.8,0.28608885]
[1743920801908,0.592,592.75,591.81,0.28608885]
[1743920802110,0.592,592.75,591.78,0.28608885]
[1743920802310,0.592,592.75,591.79,0.28608885]
[1743920802509,0.592,592.75,591.77,1.56206486]